[Event "Titled Tuesday Blitz March 14 Early 2023"]
[White "Xiong, Jeffery"]
[Black "Csonka, Balazs"]
[WhiteFideId "2047640"]
[BlackFideId "742910"]
[WhiteElo "2726"]
[BlackElo "2404"]
[Result "1-0"]
[Round "06"]
[TimeControl "180+2"]
[Date "2023.03.14"]
[WhiteClock "0:01:52"]
[BlackClock "0:00:03"]

1. d4 {[%clk 0:03:00]}  Nf6 {[%clk 0:02:59]} 2. Nf3 {[%clk 0:03:01]}  e6 {[%clk 0:02:57]} 3. Bf4 {[%clk 0:03:01]}  d5 {[%clk 0:02:54]} 4. e3 {[%clk 0:03:02]}  Bd6 {[%clk 0:02:50]} 5. Nbd2 {[%clk 0:03:02]}  O-O {[%clk 0:02:48]} 6. Bd3 {[%clk 0:03:02]}  b6 {[%clk 0:02:40]} 7. Qe2 {[%clk 0:03:00]}  Bb7 {[%clk 0:02:38]} 8. Ne5 {[%clk 0:03:00]}  c5 {[%clk 0:02:32]} 9. c3 {[%clk 0:03:00]}  Nc6 {[%clk 0:02:30]} 10. Nxc6 {[%clk 0:02:47]}  Bxc6 {[%clk 0:02:30]} 11. Bxd6 {[%clk 0:02:48]}  Qxd6 {[%clk 0:02:30]} 12. f4 {[%clk 0:02:49]}  c4 {[%clk 0:02:06]} 13. Bc2 {[%clk 0:02:49]}  b5 {[%clk 0:02:07]} 14. b3 {[%clk 0:02:41]}  a5 {[%clk 0:01:55]} 15. O-O {[%clk 0:02:41]}  Rac8 {[%clk 0:01:23]} 16. Rfc1 {[%clk 0:02:37]}  Bb7 {[%clk 0:01:04]} 17. a4 {[%clk 0:02:28]}  cxb3 {[%clk 0:00:54]} 18. Nxb3 {[%clk 0:02:29]}  bxa4 {[%clk 0:00:50]} 19. Nc5 {[%clk 0:02:27]}  Bc6 {[%clk 0:00:43]} 20. Bxa4 {[%clk 0:02:27]}  Nd7 {[%clk 0:00:33]} 21. Nxd7 {[%clk 0:02:24]}  Qxd7 {[%clk 0:00:31]} 22. Bxc6 {[%clk 0:02:24]}  Rxc6 {[%clk 0:00:32]} 23. Rxa5 {[%clk 0:02:24]}  Rfc8 {[%clk 0:00:32]} 24. Ra3 {[%clk 0:02:24]}  g6 {[%clk 0:00:32]} 25. Qb2 {[%clk 0:02:21]}  Kg7 {[%clk 0:00:31]} 26. Rb3 {[%clk 0:02:16]}  R6c7 {[%clk 0:00:32]} 27. h3 {[%clk 0:02:12]}  h5 {[%clk 0:00:31]} 28. Kh2 {[%clk 0:02:12]}  Qe7 {[%clk 0:00:31]} 29. Qb1 {[%clk 0:02:06]}  Qf6 {[%clk 0:00:30]} 30. Qd3 {[%clk 0:02:06]}  Qf5 {[%clk 0:00:27]} 31. Qxf5 {[%clk 0:01:56]}  gxf5 {[%clk 0:00:28]} 32. Kg3 {[%clk 0:01:56]}  Kg6 {[%clk 0:00:27]} 33. Rc2 {[%clk 0:01:57]}  Rc6 {[%clk 0:00:26]} 34. Kf3 {[%clk 0:01:57]}  R8c7 {[%clk 0:00:26]} 35. Ke2 {[%clk 0:01:58]}  Rc8 {[%clk 0:00:26]} 36. Kd3 {[%clk 0:01:58]}  R6c7 {[%clk 0:00:25]} 37. Rb1 {[%clk 0:01:58]}  Kf6 {[%clk 0:00:26]} 38. Rg1 {[%clk 0:01:57]}  Rg8 {[%clk 0:00:23]} 39. c4 {[%clk 0:01:57]}  dxc4+ {[%clk 0:00:23]} 40. Rxc4 {[%clk 0:01:58]}  Rxc4 {[%clk 0:00:23]} 41. Kxc4 {[%clk 0:01:59]}  Rc8+ {[%clk 0:00:24]} 42. Kd3 {[%clk 0:02:00]}  Ra8 {[%clk 0:00:24]} 43. g4 {[%clk 0:01:58]}  hxg4 {[%clk 0:00:24]} 44. hxg4 {[%clk 0:01:59]}  fxg4 {[%clk 0:00:25]} 45. Rxg4 {[%clk 0:02:00]}  Ra3+ {[%clk 0:00:25]} 46. Ke4 {[%clk 0:02:00]}  Ra4 {[%clk 0:00:26]} 47. Rg5 {[%clk 0:01:59]}  Ra3 {[%clk 0:00:26]} 48. Rb5 {[%clk 0:01:59]}  Rc3 {[%clk 0:00:26]} 49. f5 {[%clk 0:01:59]}  Ra3 {[%clk 0:00:19]} 50. Kf4 {[%clk 0:01:59]}  Ra4 {[%clk 0:00:18]} 51. Rb6 {[%clk 0:01:59]}  Ra5 {[%clk 0:00:14]} 52. e4 {[%clk 0:01:58]}  Ke7 {[%clk 0:00:14]} 53. e5 {[%clk 0:01:56]}  Ra4 {[%clk 0:00:08]} 54. f6+ {[%clk 0:01:56]}  Kd7 {[%clk 0:00:07]} 55. Rb7+ {[%clk 0:01:56]}  Ke8 {[%clk 0:00:07]} 56. Rb8+ {[%clk 0:01:56]}  Kd7 {[%clk 0:00:07]} 57. Rf8 {[%clk 0:01:57]}  Rxd4+ {[%clk 0:00:07]} 58. Kg5 {[%clk 0:01:52]}  Re4 {[%clk 0:00:05]} 59. Rxf7+ {[%clk 0:01:53]}  Kd8 {[%clk 0:00:05]} 60. Ra7 {[%clk 0:01:50]}  Rxe5+ {[%clk 0:00:05]} 61. Kg6 {[%clk 0:01:51]}  Rf5 {[%clk 0:00:04]} 62. f7 {[%clk 0:01:50]}  Rf1 {[%clk 0:00:03]} 63. Ra8+ {[%clk 0:01:50]}  Ke7 {[%clk 0:00:03]} 64. Re8+ {[%clk 0:01:50]}  Kd7 {[%clk 0:00:04]} 65. f8=Q {[%clk 0:01:51]}  Rxf8 {[%clk 0:00:03]} 66. Rxf8 {[%clk 0:01:52]} 1-0


[Site "https://www.chess.com"]

[Event "Titled Tuesday Blitz March 14 Early 2023"]
[White "Al-Tarboush, Ward"]
[Black "Yuan, Qingyu"]
[WhiteFideId "7601450"]
[BlackFideId "8609772"]
[WhiteElo "2257"]
[BlackElo "2359"]
[Result "1/2-1/2"]
[Round "06"]
[TimeControl "180+2"]
[Date "2023.03.14"]
[WhiteClock "0:00:08"]
[BlackClock "0:00:06"]

1. e4 {[%clk 0:03:00]}  e5 {[%clk 0:02:59]} 2. Nf3 {[%clk 0:03:01]}  Nc6 {[%clk 0:03:00]} 3. Bb5 {[%clk 0:03:02]}  Nf6 {[%clk 0:03:00]} 4. O-O {[%clk 0:03:01]}  Nxe4 {[%clk 0:03:01]} 5. d4 {[%clk 0:03:02]}  Nd6 {[%clk 0:03:02]} 6. Bxc6 {[%clk 0:03:02]}  dxc6 {[%clk 0:03:03]} 7. dxe5 {[%clk 0:03:03]}  Nf5 {[%clk 0:03:03]} 8. Qxd8+ {[%clk 0:03:04]}  Kxd8 {[%clk 0:03:04]} 9. Nc3 {[%clk 0:03:04]}  Ke8 {[%clk 0:03:05]} 10. h3 {[%clk 0:03:04]}  h5 {[%clk 0:03:05]} 11. Bg5 {[%clk 0:03:04]}  Be7 {[%clk 0:02:54]} 12. Bxe7 {[%clk 0:03:01]}  Kxe7 {[%clk 0:02:54]} 13. Rad1 {[%clk 0:03:00]}  Be6 {[%clk 0:02:54]} 14. Ne2 {[%clk 0:02:57]}  Rad8 {[%clk 0:02:21]} 15. Nf4 {[%clk 0:02:50]}  h4 {[%clk 0:02:13]} 16. Rfe1 {[%clk 0:02:47]}  Bd5 {[%clk 0:01:47]} 17. Ng5 {[%clk 0:02:29]}  Rhe8 {[%clk 0:01:40]} 18. b3 {[%clk 0:02:26]}  Be6 {[%clk 0:01:20]} 19. Nfxe6 {[%clk 0:02:04]}  fxe6 {[%clk 0:01:20]} 20. c3 {[%clk 0:02:04]}  Rd5 {[%clk 0:01:12]} 21. c4 {[%clk 0:01:51]}  Rdd8 {[%clk 0:01:10]} 22. Kf1 {[%clk 0:01:35]}  c5 {[%clk 0:01:09]} 23. Nf3 {[%clk 0:01:21]}  b6 {[%clk 0:01:06]} 24. Ke2 {[%clk 0:01:19]}  Rh8 {[%clk 0:00:58]} 25. Rxd8 {[%clk 0:01:18]}  Kxd8 {[%clk 0:00:58]} 26. Rd1+ {[%clk 0:01:18]}  Ke7 {[%clk 0:00:58]} 27. Kd3 {[%clk 0:00:52]}  Rh6 {[%clk 0:00:48]} 28. Nh2 {[%clk 0:00:42]}  Rh8 {[%clk 0:00:36]} 29. Ke4 {[%clk 0:00:41]}  a5 {[%clk 0:00:32]} 30. Ng4 {[%clk 0:00:41]}  a4 {[%clk 0:00:30]} 31. Ne3 {[%clk 0:00:27]}  Nh6 {[%clk 0:00:11]} 32. f4 {[%clk 0:00:14]}  g6 {[%clk 0:00:07]} 33. Rd2 {[%clk 0:00:11]}  axb3 {[%clk 0:00:07]} 34. axb3 {[%clk 0:00:12]}  Ra8 {[%clk 0:00:07]} 35. Rb2 {[%clk 0:00:11]}  Ra1 {[%clk 0:00:07]} 36. Rd2 {[%clk 0:00:11]}  Rb1 {[%clk 0:00:06]} 37. Rd3 {[%clk 0:00:11]}  Re1 {[%clk 0:00:06]} 38. Kf3 {[%clk 0:00:11]}  Nf5 {[%clk 0:00:06]} 39. Nxf5+ {[%clk 0:00:11]}  gxf5 {[%clk 0:00:06]} 40. g3 {[%clk 0:00:10]}  Rh1 {[%clk 0:00:03]} 41. Kg2 {[%clk 0:00:09]}  Re1 {[%clk 0:00:03]} 42. gxh4 {[%clk 0:00:10]}  Ra1 {[%clk 0:00:03]} 43. h5 {[%clk 0:00:10]}  Ra8 {[%clk 0:00:03]} 44. Rg3 {[%clk 0:00:09]}  Rh8 {[%clk 0:00:03]} 45. Rg5 {[%clk 0:00:09]}  Kf7 {[%clk 0:00:03]} 46. Kf3 {[%clk 0:00:10]}  Rh7 {[%clk 0:00:03]} 47. Ke3 {[%clk 0:00:10]}  Rh8 {[%clk 0:00:03]} 48. h4 {[%clk 0:00:10]}  Ra8 {[%clk 0:00:03]} 49. h6 {[%clk 0:00:10]}  Rh8 {[%clk 0:00:03]} 50. Rg7+ {[%clk 0:00:10]}  Ke8 {[%clk 0:00:03]} 51. Rg6 {[%clk 0:00:11]}  Kf7 {[%clk 0:00:03]} 52. Rg7+ {[%clk 0:00:11]}  Kf8 {[%clk 0:00:03]} 53. Rxc7 {[%clk 0:00:11]}  Rxh6 {[%clk 0:00:03]} 54. Rc6 {[%clk 0:00:11]}  Ke7 {[%clk 0:00:03]} 55. Rxb6 {[%clk 0:00:10]}  Rxh4 {[%clk 0:00:04]} 56. Rb7+ {[%clk 0:00:11]}  Kd8 {[%clk 0:00:04]} 57. Rb5 {[%clk 0:00:08]}  Rh3+ {[%clk 0:00:03]} 58. Kf2 {[%clk 0:00:08]}  Kd7 {[%clk 0:00:03]} 59. Kg2 {[%clk 0:00:07]}  Rc3 {[%clk 0:00:03]} 60. Rb6 {[%clk 0:00:07]}  Rd3 {[%clk 0:00:03]} 61. Kf2 {[%clk 0:00:07]}  Rc3 {[%clk 0:00:03]} 62. Rd6+ {[%clk 0:00:07]}  Ke7 {[%clk 0:00:03]} 63. Rc6 {[%clk 0:00:07]}  Rxb3 {[%clk 0:00:03]} 64. Rxc5 {[%clk 0:00:08]}  Rc3 {[%clk 0:00:04]} 65. Rc7+ {[%clk 0:00:08]}  Kd8 {[%clk 0:00:04]} 66. Rc6 {[%clk 0:00:09]}  Kd7 {[%clk 0:00:05]} 67. Rc5 {[%clk 0:00:09]}  Ke7 {[%clk 0:00:05]} 68. Ke2 {[%clk 0:00:09]}  Kd7 {[%clk 0:00:05]} 69. Kf2 {[%clk 0:00:08]}  Ke7 {[%clk 0:00:06]} 1/2-1/2


[Site "https://www.chess.com"]

[Event "Titled Tuesday Blitz March 14 Early 2023"]
[White "Ahn, Hongjin"]
[Black "Tanenbaum, Zachary"]
[WhiteFideId "13201492"]
[BlackFideId "2060850"]
[WhiteElo "2182"]
[BlackElo "2175"]
[Result "0-1"]
[Round "06"]
[TimeControl "180+2"]
[Date "2023.03.14"]
[WhiteClock "0:00:10"]
[BlackClock "0:00:25"]

1. c4 {[%clk 0:03:00]}  e5 {[%clk 0:02:59]} 2. Nf3 {[%clk 0:02:57]}  Nc6 {[%clk 0:02:57]} 3. Nc3 {[%clk 0:02:54]}  Nf6 {[%clk 0:02:57]} 4. e4 {[%clk 0:02:54]}  Bb4 {[%clk 0:02:57]} 5. d3 {[%clk 0:02:54]}  d6 {[%clk 0:02:57]} 6. g3 {[%clk 0:02:54]}  O-O {[%clk 0:02:43]} 7. Bg2 {[%clk 0:02:54]}  Bg4 {[%clk 0:02:41]} 8. O-O {[%clk 0:02:51]}  Nd4 {[%clk 0:02:39]} 9. Be3 {[%clk 0:02:50]}  Bc5 {[%clk 0:02:16]} 10. Na4 {[%clk 0:02:47]}  Nxf3+ {[%clk 0:02:14]} 11. Bxf3 {[%clk 0:02:47]}  Bxe3 {[%clk 0:02:13]} 12. fxe3 {[%clk 0:02:42]}  Bh3 {[%clk 0:02:10]} 13. Bg2 {[%clk 0:02:32]}  Qd7 {[%clk 0:02:08]} 14. Nc3 {[%clk 0:02:31]}  c6 {[%clk 0:02:05]} 15. Qe2 {[%clk 0:02:13]}  Rad8 {[%clk 0:01:48]} 16. Rf2 {[%clk 0:02:08]}  Bxg2 {[%clk 0:01:47]} 17. Kxg2 {[%clk 0:02:06]}  Ng4 {[%clk 0:01:44]} 18. Rf5 {[%clk 0:02:04]}  Nh6 {[%clk 0:01:38]} 19. Rf2 {[%clk 0:02:04]}  f5 {[%clk 0:01:36]} 20. Raf1 {[%clk 0:02:02]}  Rf7 {[%clk 0:01:02]} 21. Kg1 {[%clk 0:01:42]}  Rdf8 {[%clk 0:01:01]} 22. exf5 {[%clk 0:01:19]}  Rxf5 {[%clk 0:01:02]} 23. Ne4 {[%clk 0:01:16]}  d5 {[%clk 0:00:55]} 24. cxd5 {[%clk 0:01:09]}  cxd5 {[%clk 0:00:56]} 25. Nc5 {[%clk 0:01:07]}  Qb5 {[%clk 0:00:44]} 26. Nb3 {[%clk 0:00:55]}  Qa4 {[%clk 0:00:32]} 27. Rxf5 {[%clk 0:00:45]}  Nxf5 {[%clk 0:00:30]} 28. Qf3 {[%clk 0:00:29]}  e4 {[%clk 0:00:26]} 29. dxe4 {[%clk 0:00:29]}  Qxe4 {[%clk 0:00:27]} 30. g4 {[%clk 0:00:15]}  Qxe3+ {[%clk 0:00:25]} 31. Qxe3 {[%clk 0:00:14]}  Nxe3 {[%clk 0:00:26]} 32. Rxf8+ {[%clk 0:00:04]}  Kxf8 {[%clk 0:00:27]} 33. h3 {[%clk 0:00:03]}  Nc4 {[%clk 0:00:27]} 34. Nc5 {[%clk 0:00:03]}  b6 {[%clk 0:00:26]} 35. Ne6+ {[%clk 0:00:03]}  Kf7 {[%clk 0:00:26]} 36. Nf4 {[%clk 0:00:04]}  d4 {[%clk 0:00:26]} 37. b3 {[%clk 0:00:04]}  Ne5 {[%clk 0:00:23]} 38. Kf2 {[%clk 0:00:05]}  g5 {[%clk 0:00:23]} 39. Ng2 {[%clk 0:00:03]}  Ke6 {[%clk 0:00:23]} 40. Ke2 {[%clk 0:00:03]}  Kd5 {[%clk 0:00:23]} 41. Ne1 {[%clk 0:00:02]}  Ke4 {[%clk 0:00:24]} 42. Kd2 {[%clk 0:00:03]}  Nf3+ {[%clk 0:00:23]} 43. Nxf3 {[%clk 0:00:03]}  Kxf3 {[%clk 0:00:24]} 44. b4 {[%clk 0:00:03]}  Kg3 {[%clk 0:00:24]} 45. Kd3 {[%clk 0:00:04]}  Kxh3 {[%clk 0:00:24]} 46. Kxd4 {[%clk 0:00:05]}  Kxg4 {[%clk 0:00:25]} 47. Kd5 {[%clk 0:00:06]}  h5 {[%clk 0:00:26]} 48. Kc6 {[%clk 0:00:06]}  h4 {[%clk 0:00:26]} 49. Kb7 {[%clk 0:00:07]}  h3 {[%clk 0:00:27]} 50. Kxa7 {[%clk 0:00:08]}  b5 {[%clk 0:00:27]} 51. Kb6 {[%clk 0:00:09]}  h2 {[%clk 0:00:27]} 52. Kxb5 {[%clk 0:00:10]}  h1=Q {[%clk 0:00:27]} 53. a4 {[%clk 0:00:11]}  Qb7+ {[%clk 0:00:27]} 54. Kc5 {[%clk 0:00:11]}  Kf4 {[%clk 0:00:27]} 55. b5 {[%clk 0:00:12]}  Qa7+ {[%clk 0:00:25]} 56. Kb4 {[%clk 0:00:12]}  Qd4+ {[%clk 0:00:26]} 57. Ka5 {[%clk 0:00:12]}  Ke5 {[%clk 0:00:26]} 58. b6 {[%clk 0:00:13]}  Kd6 {[%clk 0:00:25]} 59. b7 {[%clk 0:00:14]}  Kc7 {[%clk 0:00:25]} 60. b8=Q+ {[%clk 0:00:10]}  Kxb8 {[%clk 0:00:25]} 0-1


[Site "https://www.chess.com"]

[Event "Titled Tuesday Blitz March 14 Early 2023"]
[White "Liyanage, Ranindu Dilshan"]
[Black "Safin, Robert"]
[WhiteFideId "9915834"]
[BlackFideId "34189120"]
[WhiteElo "2199"]
[BlackElo "2245"]
[Result "1-0"]
[Round "06"]
[TimeControl "180+2"]
[Date "2023.03.14"]
[WhiteClock "0:00:28"]
[BlackClock "0:00:06"]

1. e4 {[%clk 0:03:00]}  c6 {[%clk 0:02:59]} 2. d4 {[%clk 0:03:00]}  d5 {[%clk 0:03:00]} 3. e5 {[%clk 0:03:00]}  Bf5 {[%clk 0:02:59]} 4. h4 {[%clk 0:03:00]}  h5 {[%clk 0:02:59]} 5. Bd3 {[%clk 0:03:00]}  Bxd3 {[%clk 0:02:56]} 6. Qxd3 {[%clk 0:03:01]}  Qa5+ {[%clk 0:02:57]} 7. Nd2 {[%clk 0:03:00]}  e6 {[%clk 0:02:39]} 8. Ne2 {[%clk 0:02:58]}  Qa6 {[%clk 0:02:29]} 9. c4 {[%clk 0:02:55]}  Nd7 {[%clk 0:02:05]} 10. b3 {[%clk 0:02:50]}  Ne7 {[%clk 0:01:56]} 11. O-O {[%clk 0:02:37]}  Nf5 {[%clk 0:01:47]} 12. Nf3 {[%clk 0:02:37]}  dxc4 {[%clk 0:01:26]} 13. bxc4 {[%clk 0:02:38]}  Nb6 {[%clk 0:01:27]} 14. Rb1 {[%clk 0:02:28]}  O-O-O {[%clk 0:01:17]} 15. Bg5 {[%clk 0:02:27]}  Rd7 {[%clk 0:00:53]} 16. Rfc1 {[%clk 0:02:19]}  c5 {[%clk 0:00:50]} 17. Qe4 {[%clk 0:02:04]}  cxd4 {[%clk 0:00:30]} 18. Nexd4 {[%clk 0:01:55]}  Nxd4 {[%clk 0:00:29]} 19. Nxd4 {[%clk 0:01:54]}  Na4 {[%clk 0:00:30]} 20. Nb5 {[%clk 0:01:41]}  Nc5 {[%clk 0:00:27]} 21. Qe2 {[%clk 0:01:38]}  Be7 {[%clk 0:00:14]} 22. Bxe7 {[%clk 0:01:32]}  Rxe7 {[%clk 0:00:15]} 23. Nd6+ {[%clk 0:01:33]}  Kb8 {[%clk 0:00:16]} 24. Rb5 {[%clk 0:01:31]}  Qc6 {[%clk 0:00:16]} 25. Rcb1 {[%clk 0:01:25]}  Rd8 {[%clk 0:00:16]} 26. Qe3 {[%clk 0:01:20]}  Rc7 {[%clk 0:00:11]} 27. Rxc5 {[%clk 0:00:53]}  Qxc5 {[%clk 0:00:10]} 28. Rxb7+ {[%clk 0:00:31]}  Ka8 {[%clk 0:00:10]} 29. Qf3 {[%clk 0:00:31]}  Rc6 {[%clk 0:00:06]} 30. Qxf7 {[%clk 0:00:28]} 1-0


[Site "https://www.chess.com"]

[Event "Titled Tuesday Blitz March 14 Early 2023"]
[White "Degenbaev, Aziz"]
[Black "Goltsev, Dmitry"]
[WhiteFideId "13802640"]
[BlackFideId "24176710"]
[WhiteElo "2152"]
[BlackElo "2336"]
[Result "1-0"]
[Round "06"]
[TimeControl "180+2"]
[Date "2023.03.14"]
[WhiteClock "0:00:46"]
[BlackClock "0:00:05"]

1. e4 {[%clk 0:03:00]}  e6 {[%clk 0:02:55]} 2. d4 {[%clk 0:03:00]}  d5 {[%clk 0:02:53]} 3. Nc3 {[%clk 0:03:01]}  Nf6 {[%clk 0:02:51]} 4. e5 {[%clk 0:03:01]}  Ne4 {[%clk 0:02:51]} 5. Bd3 {[%clk 0:02:50]}  Nxc3 {[%clk 0:02:48]} 6. bxc3 {[%clk 0:02:50]}  c5 {[%clk 0:02:48]} 7. Nf3 {[%clk 0:02:49]}  Nc6 {[%clk 0:02:48]} 8. O-O {[%clk 0:02:43]}  Qb6 {[%clk 0:02:47]} 9. a4 {[%clk 0:02:40]}  Bd7 {[%clk 0:02:42]} 10. Be3 {[%clk 0:02:08]}  c4 {[%clk 0:02:41]} 11. Be2 {[%clk 0:02:08]}  Be7 {[%clk 0:02:41]} 12. Nd2 {[%clk 0:02:00]}  f6 {[%clk 0:02:37]} 13. exf6 {[%clk 0:01:57]}  Bxf6 {[%clk 0:02:37]} 14. f4 {[%clk 0:01:57]}  O-O {[%clk 0:02:37]} 15. Nf3 {[%clk 0:01:55]}  Be8 {[%clk 0:02:34]} 16. Kh1 {[%clk 0:01:50]}  Bg6 {[%clk 0:02:34]} 17. Ne5 {[%clk 0:01:42]}  Nxe5 {[%clk 0:02:32]} 18. fxe5 {[%clk 0:01:42]}  Bxe5 {[%clk 0:02:33]} 19. a5 {[%clk 0:01:43]}  Rxf1+ {[%clk 0:02:15]} 20. Qxf1 {[%clk 0:01:41]}  Qb2 {[%clk 0:02:15]} 21. dxe5 {[%clk 0:01:40]}  Qxc3 {[%clk 0:02:14]} 22. Bc5 {[%clk 0:01:29]}  Qxc2 {[%clk 0:02:01]} 23. Bg4 {[%clk 0:01:25]}  Be4 {[%clk 0:01:14]} 24. Bxe6+ {[%clk 0:01:17]}  Kh8 {[%clk 0:01:14]} 25. Bh3 {[%clk 0:01:15]}  Qc3 {[%clk 0:01:12]} 26. e6 {[%clk 0:01:13]}  Qxh3 {[%clk 0:01:11]} 27. e7 {[%clk 0:01:12]}  Qf5 {[%clk 0:01:08]} 28. Qxf5 {[%clk 0:00:59]}  Bxf5 {[%clk 0:01:08]} 29. Rf1 {[%clk 0:01:00]}  g6 {[%clk 0:00:23]} 30. g4 {[%clk 0:00:59]}  c3 {[%clk 0:00:04]} 31. gxf5 {[%clk 0:00:56]}  gxf5 {[%clk 0:00:05]} 32. Bd4+ {[%clk 0:00:46]}  Kg8 {[%clk 0:00:05]} 33. Bxc3 {[%clk 0:00:47]}  Kf7 {[%clk 0:00:05]} 34. Bb4 {[%clk 0:00:46]}  Ke6 {[%clk 0:00:05]} 35. Re1+ {[%clk 0:00:46]}  Kf6 {[%clk 0:00:05]} 36. e8=Q {[%clk 0:00:46]} 1-0


[Site "https://www.chess.com"]

[Event "Titled Tuesday Blitz March 14 Early 2023"]
[White "Agasarov, Benik"]
[Black "Klepikov, Nikita"]
[WhiteFideId "13314823"]
[BlackFideId "24145220"]
[WhiteElo "2179"]
[BlackElo "2025"]
[Result "1-0"]
[Round "06"]
[TimeControl "180+2"]
[Date "2023.03.14"]
[WhiteClock "0:01:14"]
[BlackClock "0:00:01"]

1. d4 {[%clk 0:02:51]}  Nf6 {[%clk 0:03:00]} 2. c4 {[%clk 0:02:52]}  d6 {[%clk 0:03:00]} 3. Nf3 {[%clk 0:02:49]}  Nbd7 {[%clk 0:03:00]} 4. Nc3 {[%clk 0:02:50]}  e5 {[%clk 0:03:00]} 5. g3 {[%clk 0:02:50]}  g6 {[%clk 0:03:01]} 6. Bg2 {[%clk 0:02:50]}  Bg7 {[%clk 0:03:01]} 7. O-O {[%clk 0:02:50]}  O-O {[%clk 0:03:02]} 8. e4 {[%clk 0:02:50]}  exd4 {[%clk 0:03:02]} 9. Nxd4 {[%clk 0:02:50]}  Re8 {[%clk 0:03:02]} 10. Re1 {[%clk 0:02:49]}  Nc5 {[%clk 0:03:02]} 11. Qc2 {[%clk 0:02:44]}  Ng4 {[%clk 0:02:33]} 12. Nb3 {[%clk 0:02:33]}  Nxb3 {[%clk 0:02:20]} 13. axb3 {[%clk 0:02:34]}  Bd4 {[%clk 0:02:20]} 14. Nd1 {[%clk 0:02:30]}  f5 {[%clk 0:02:12]} 15. h3 {[%clk 0:02:25]}  Nf6 {[%clk 0:02:10]} 16. Bg5 {[%clk 0:02:12]}  h6 {[%clk 0:02:06]} 17. Bxh6 {[%clk 0:02:09]}  fxe4 {[%clk 0:01:54]} 18. Nc3 {[%clk 0:01:55]}  Bf5 {[%clk 0:01:39]} 19. Nxe4 {[%clk 0:01:54]}  Nxe4 {[%clk 0:01:26]} 20. Bxe4 {[%clk 0:01:55]}  Rxe4 {[%clk 0:01:07]} 21. Rxe4 {[%clk 0:01:56]}  Qf6 {[%clk 0:01:01]} 22. Rae1 {[%clk 0:01:53]}  g5 {[%clk 0:00:31]} 23. Qd2 {[%clk 0:01:50]}  Bxe4 {[%clk 0:00:20]} 24. Rxe4 {[%clk 0:01:51]}  Bxf2+ {[%clk 0:00:09]} 25. Qxf2 {[%clk 0:01:52]}  Qxh6 {[%clk 0:00:09]} 26. Re7 {[%clk 0:01:32]}  Rf8 {[%clk 0:00:09]} 27. Qd4 {[%clk 0:01:33]}  Rf6 {[%clk 0:00:04]} 28. Rxc7 {[%clk 0:01:16]}  Qf8 {[%clk 0:00:03]} 29. Qe3 {[%clk 0:01:14]}  Rf1+ {[%clk 0:00:01]} 30. Kg2 {[%clk 0:01:14]}  Qf5 {[%clk 0:00:01]} 31. Qe8+ {[%clk 0:01:14]}  Qf8 {[%clk 0:00:01]} 32. Qg6+ {[%clk 0:01:14]} 1-0


[Site "https://www.chess.com"]

[Event "Titled Tuesday Blitz March 14 Early 2023"]
[White "Perez Rodriguez, Jennifer"]
[Black "Ozates, Tuna"]
[WhiteFideId "3507831"]
[BlackFideId "6354521"]
[WhiteElo "2170"]
[BlackElo "2151"]
[Result "0-1"]
[Round "06"]
[TimeControl "180+2"]
[Date "2023.03.14"]
[WhiteClock "0:00:04"]
[BlackClock "0:00:20"]

1. e4 {[%clk 0:03:00]}  c5 {[%clk 0:02:57]} 2. c3 {[%clk 0:03:00]}  d5 {[%clk 0:02:55]} 3. exd5 {[%clk 0:03:01]}  Nf6 {[%clk 0:02:56]} 4. d4 {[%clk 0:02:58]}  cxd4 {[%clk 0:02:56]} 5. Qxd4 {[%clk 0:02:55]}  Qxd5 {[%clk 0:02:56]} 6. Qxd5 {[%clk 0:02:55]}  Nxd5 {[%clk 0:02:56]} 7. Nf3 {[%clk 0:02:55]}  a6 {[%clk 0:02:52]} 8. Na3 {[%clk 0:02:50]}  Nc6 {[%clk 0:02:51]} 9. Nc4 {[%clk 0:02:47]}  Bf5 {[%clk 0:02:49]} 10. Ne3 {[%clk 0:02:46]}  Be4 {[%clk 0:02:41]} 11. Ng5 {[%clk 0:02:28]}  Nxe3 {[%clk 0:02:41]} 12. Bxe3 {[%clk 0:02:26]}  Bg6 {[%clk 0:02:40]} 13. O-O-O {[%clk 0:02:22]}  h6 {[%clk 0:02:28]} 14. Nf3 {[%clk 0:02:20]}  e6 {[%clk 0:02:29]} 15. Bd3 {[%clk 0:02:16]}  Bh5 {[%clk 0:02:16]} 16. Be4 {[%clk 0:02:09]}  Rc8 {[%clk 0:02:16]} 17. h3 {[%clk 0:02:04]}  f5 {[%clk 0:02:09]} 18. Bc2 {[%clk 0:01:57]}  Bxf3 {[%clk 0:02:08]} 19. gxf3 {[%clk 0:01:57]}  Be7 {[%clk 0:01:58]} 20. Bb3 {[%clk 0:01:48]}  Kf7 {[%clk 0:01:57]} 21. Rd7 {[%clk 0:01:45]}  b5 {[%clk 0:01:51]} 22. Re1 {[%clk 0:01:35]}  Rhd8 {[%clk 0:01:47]} 23. Rxd8 {[%clk 0:01:31]}  Nxd8 {[%clk 0:01:43]} 24. Bb6 {[%clk 0:01:20]}  Rc6 {[%clk 0:01:38]} 25. Bd4 {[%clk 0:01:06]}  Nb7 {[%clk 0:01:34]} 26. f4 {[%clk 0:01:01]}  a5 {[%clk 0:01:32]} 27. a4 {[%clk 0:00:52]}  b4 {[%clk 0:01:29]} 28. Kd2 {[%clk 0:00:50]}  Bc5 {[%clk 0:01:24]} 29. Kd3 {[%clk 0:00:43]}  Rd6 {[%clk 0:01:15]} 30. Kc4 {[%clk 0:00:33]}  Bxd4 {[%clk 0:01:12]} 31. cxd4 {[%clk 0:00:32]}  Rd5 {[%clk 0:01:04]} 32. Re5 {[%clk 0:00:28]}  Nd6+ {[%clk 0:01:00]} 33. Kd3 {[%clk 0:00:26]}  Rxe5 {[%clk 0:00:58]} 34. dxe5 {[%clk 0:00:22]}  Ne4 {[%clk 0:00:58]} 35. Kc4 {[%clk 0:00:20]}  Nd2+ {[%clk 0:00:57]} 36. Kd3 {[%clk 0:00:14]}  Nxb3 {[%clk 0:00:57]} 37. Kc4 {[%clk 0:00:14]}  Nd2+ {[%clk 0:00:32]} 38. Kb5 {[%clk 0:00:13]}  Ke7 {[%clk 0:00:32]} 39. Kxa5 {[%clk 0:00:14]}  Nc4+ {[%clk 0:00:24]} 40. Kxb4 {[%clk 0:00:09]}  Nxb2 {[%clk 0:00:24]} 41. a5 {[%clk 0:00:05]}  Kd7 {[%clk 0:00:23]} 42. Kc5 {[%clk 0:00:05]}  Kc7 {[%clk 0:00:19]} 43. a6 {[%clk 0:00:05]}  Nd3+ {[%clk 0:00:19]} 44. Kb5 {[%clk 0:00:04]}  Nxf4 {[%clk 0:00:19]} 45. a7 {[%clk 0:00:04]}  Kb7 {[%clk 0:00:19]} 46. a8=Q+ {[%clk 0:00:04]}  Kxa8 {[%clk 0:00:20]} 47. Kc6 {[%clk 0:00:05]}  Nxh3 {[%clk 0:00:20]} 48. Kd6 {[%clk 0:00:05]}  Nf4 {[%clk 0:00:20]} 49. Ke7 {[%clk 0:00:04]}  h5 {[%clk 0:00:20]} 0-1


[Site "https://www.chess.com"]

[Event "Titled Tuesday Blitz March 14 Early 2023"]
[White "Pranav, V"]
[Black "Fiorito, Joaquin"]
[WhiteFideId "25060783"]
[BlackFideId "180173"]
[WhiteElo "2500"]
[BlackElo "2157"]
[Result "1-0"]
[Round "06"]
[TimeControl "180+2"]
[Date "2023.03.14"]
[WhiteClock "0:02:13"]
[BlackClock "0:01:13"]

1. e4 {[%clk 0:03:00]}  c6 {[%clk 0:02:59]} 2. d4 {[%clk 0:02:59]}  d5 {[%clk 0:02:58]} 3. e5 {[%clk 0:02:59]}  Bf5 {[%clk 0:02:58]} 4. Nf3 {[%clk 0:02:58]}  e6 {[%clk 0:02:58]} 5. Be2 {[%clk 0:02:59]}  c5 {[%clk 0:02:57]} 6. c3 {[%clk 0:02:58]}  Nc6 {[%clk 0:02:47]} 7. O-O {[%clk 0:02:58]}  Bg4 {[%clk 0:02:44]} 8. Nbd2 {[%clk 0:02:52]}  Nh6 {[%clk 0:02:35]} 9. h3 {[%clk 0:02:43]}  Bxf3 {[%clk 0:02:35]} 10. Nxf3 {[%clk 0:02:44]}  cxd4 {[%clk 0:02:35]} 11. Bxh6 {[%clk 0:02:41]}  gxh6 {[%clk 0:02:33]} 12. cxd4 {[%clk 0:02:42]}  Qb6 {[%clk 0:02:27]} 13. Rc1 {[%clk 0:02:42]}  Be7 {[%clk 0:02:22]} 14. Qd2 {[%clk 0:02:39]}  Bg5 {[%clk 0:02:22]} 15. Nxg5 {[%clk 0:02:32]}  hxg5 {[%clk 0:02:23]} 16. Qxg5 {[%clk 0:02:33]}  Nxd4 {[%clk 0:01:55]} 17. Bh5 {[%clk 0:02:28]}  Nc6 {[%clk 0:01:13]} 18. Bxf7+ {[%clk 0:02:22]}  Kxf7 {[%clk 0:01:13]} 19. Qf6+ {[%clk 0:02:22]}  Kg8 {[%clk 0:01:13]} 20. Rc3 {[%clk 0:02:13]} 1-0


[Site "https://www.chess.com"]